bitfinex/quotes_ETHUSD_20230117
["timestamp","ask_amount","ask_price","bid_price","bid_amount"]
[1673985845135,3.90820193,1591.8,1591.6,1.24440001]
[1673985845345,2.35390481,1591.7,1591.5,26.97997339]
[1673985845609,2.35390481,1591.7,1591.5,31.38021591]
[1673985846110,2.25390481,1591.7,1591.5,31.38021591]
[1673985846299,2.91420193,1591.8,1591.5,31.38021591]
[1673985846510,2.84820193,1591.8,1591.5,31.38021591]
[1673985847757,2.84820193,1591.8,1591.5,25.09683591]
[1673985848601,9.13043193,1591.8,1591.5,25.09683591]
[1673985848813,9.19643193,1591.8,1591.5,25.09683591]
[1673985850282,9.19643193,1591.8,1591.5,23.91883591]
[1673985850855,1.88279976,1591.6,1591.5,23.91883591]
[1673985851062,1.88279976,1591.6,1591.5,24.14883591]
[1673985852856,1.85939976,1591.6,1591.5,24.14883591]
[1673985853019,4.21287692,1591.6,1591.5,24.14883591]
[1673985853549,1.85939976,1591.6,1591.5,24.14883591]
[1673985854733,4.21287692,1591.6,1591.5,24.14883591]
[1673985855063,2.35347716,1591.6,1591.5,24.14883591]
[1673985855446,2.35347716,1591.6,1591.5,39.83221998]
[1673985855447,1.41191541,1591.6,1591.5,39.83221998]
[1673985855639,1.41191541,1591.6,1591.5,41.24621998]
[1673985857278,2.35347716,1591.7,1591.5,41.24621998]
[1673985857579,2.35347716,1591.6,1591.5,19.74859339]
[1673985861157,2.35547716,1591.6,1591.5,19.74659339]
[1673985861371,2.35347716,1591.6,1591.5,19.74859339]
[1673985861777,1.88257166,1591.6,1591.5,19.74859339]
[1673985861987,4.23604882,1591.6,1591.5,24.07695791]
[1673985863019,1.88257166,1591.6,1591.5,24.07695791]
[1673985863420,4.23604882,1591.6,1591.5,24.07695791]
[1673985863645,1.88257166,1591.6,1591.5,24.07695791]
[1673985863859,4.23604882,1591.6,1591.5,24.07695791]
[1673985865790,2.35347716,1591.6,1591.5,24.07695791]
[1673985867250,2.35347716,1591.6,1591.5,19.74859339]
[1673985867472,4.23672216,1591.6,1591.5,19.74859339]
[1673985867828,4.23674977,1591.6,1591.5,19.74859339]
[1673985868881,2.35347716,1591.6,1591.5,19.74859339]
[1673985869092,4.23684496,1591.6,1591.5,19.74859339]
[1673985869436,4.23684496,1591.6,1591.5,24.07695791]
[1673985870694,2.35347716,1591.6,1591.5,24.07695791]
[1673985870907,1.88335053,1591.6,1591.5,24.07695791]
[1673985872065,1.4124658,1591.6,1591.5,42.23996266]
[1673985872305,1.4124658,1591.6,1591.5,43.64696266]
[1673985872520,2.3540863,1591.6,1591.5,43.64696266]
[1673985872733,1.4124658,1591.6,1591.5,43.64696266]
[1673985873105,2.35396095,1591.6,1591.5,43.64696266]
[1673985873799,1.4124658,1591.6,1591.5,43.64696266]
[1673985874790,2.35385267,1591.6,1591.5,43.64381376]
[1673985875979,0.94138687,1591.6,1591.5,43.64381376]
[1673985876190,2.35385267,1591.6,1591.5,43.64381376]
[1673985877101,0.94138687,1591.6,1591.5,43.64381376]
[1673985878049,2.35385267,1591.6,1591.5,43.64381376]
[1673985878950,0.94138687,1591.6,1591.5,43.64381376]
[1673985880705,2.35385267,1591.7,1591.5,43.64381376]
[1673985880931,2.35385267,1591.7,1591.6,5.91393347]
[1673985881101,2.35385267,1591.7,1591.6,24.82227348]
[1673985882574,1.4124658,1591.7,1591.6,24.82227348]
[1673985883873,2.35344228,1591.7,1591.6,24.82227348]
[1673985884354,0.94091846,1591.7,1591.6,24.82227348]
[1673985884570,1.43507969,1591.8,1591.6,24.82227348]
[1673985884831,2.37575826,1591.8,1591.7,22.73799735]
[1673985884997,2.37575826,1591.8,1591.7,26.14402143]
[1673985886053,0.96329246,1591.8,1591.7,27.21476902]
[1673985887138,0.02261389,1591.8,1591.7,27.21476902]
[1673985888081,0.78148343,1591.9,1591.8,4.1404769]
[1673985888365,0.066,1592.1,1591.9,0.78148342]
[1673985888538,1.54974282,1592.2,1592.0,4.52962407]
[1673985888753,1.54974282,1592.2,1592.1,20.94499241]
[1673985888903,1.54974282,1592.2,1592.1,21.00439242]
[1673985889343,0.13941335,1592.2,1592.1,25.54001649]
[1673985889550,0.13941335,1592.2,1592.1,32.15001649]
[1673985889740,0.13941335,1592.2,1592.1,25.54001649]
[1673985891844,0.13941335,1592.2,1592.1,26.61076408]
[1673985893307,0.13941335,1592.2,1592.1,33.22076408]
[1673985893942,0.13941335,1592.2,1592.1,25.54001649]
[1673985894801,0.13941335,1592.2,1592.1,24.12101649]
[1673985897703,0.13941335,1592.2,1592.1,25.19176408]
[1673985897862,0.13941335,1592.2,1592.1,26.61076408]
[1673985898810,0.13941335,1592.2,1592.1,33.22076408]
[1673985900733,0.13941335,1592.2,1592.1,36.22076408]
[1673985901165,0.13941335,1592.2,1592.1,35.15001649]
[1673985904586,0.13941335,1592.2,1592.1,18.91238242]
[1673985904801,0.13941335,1592.2,1592.1,10.75941001]
[1673985905446,0.03941335,1592.2,1592.1,10.52141001]
[1673985905668,0.03941335,1592.2,1592.1,27.38605408]
[1673985906723,0.03941335,1592.2,1592.1,27.61605408]
[1673985908372,0.03941335,1592.2,1592.1,21.33504408]
[1673985908645,0.03941335,1592.2,1592.1,24.84265949]
[1673985908795,0.03941335,1592.2,1592.1,31.12366949]
[1673985916396,3.24144259,1592.4,1592.1,31.12366949]
[1673985916725,3.24144259,1592.4,1592.2,0.23]
[1673985916726,8.16324053,1592.4,1592.2,0.23]
[1673985916895,23.14242769,1592.4,1592.1,0.05940001]
[1673985917093,8.63488053,1592.3,1591.9,12.62271001]
[1673985917307,16.8323683,1592.3,1591.9,12.62271001]
[1673985917537,19.18584546,1592.3,1591.9,12.62271001]
[1673985918372,1.88335053,1592.2,1591.9,6.34105001]
[1673985918777,0.4712,1592.1,1591.9,6.34105001]
[1673985919221,11.05468769,1592.2,1591.9,6.34105001]
[1673985919459,13.60133824,1592.2,1591.9,6.34105001]
[1673985919664,13.60133824,1592.2,1591.9,0.05940001]
[1673985919875,13.60133824,1592.2,1591.8,32.55943001]
[1673985920206,8.70121053,1592.2,1591.9,6.51178]
[1673985920420,8.70121053,1592.2,1591.9,6.57118001]
[1673985920989,11.05468769,1592.2,1591.9,6.57118001]
[1673985921982,1.88335053,1592.1,1591.9,6.57118001]
[1673985925507,1.41069786,1592.0,1591.9,6.57118001]
[1673985925728,1.41069786,1592.0,1591.9,0.28940001]
[1673985925927,1.41069786,1592.0,1591.9,0.23]
[1673985927251,3.29404839,1592.0,1591.9,0.23]
[1673985929056,1.41069786,1592.0,1591.9,0.23]
[1673985929279,3.29404839,1592.0,1591.9,0.23]
[1673985929486,3.29404839,1592.0,1591.8,0.05940001]
[1673985929487,1.88335053,1592.0,1591.7,16.29270736]
[1673985929658,2.35112499,1591.9,1591.8,0.23]
[1673985929873,1.41067499,1591.9,1591.8,0.23]
[1673985931077,2.35089889,1591.9,1591.8,0.23]
[1673985931595,1.88335053,1591.9,1591.7,6.34194001]
[1673985931830,1.41042742,1591.8,1591.7,0.05940001]
[1673985932121,1.41042742,1591.8,1591.5,6.34261001]
[1673985932350,0.94030039,1591.7,1591.5,6.34261001]
[1673985932858,1.41042742,1591.8,1591.5,12.62599001]
[1673985932859,2.35072781,1591.8,1591.5,12.62599001]
[1673985933047,2.35072781,1591.8,1591.6,0.23]
[1673985933048,0.75999764,1591.7,1591.6,0.23]
[1673985934588,0.75999764,1591.7,1591.6,6.51298]
[1673985934799,0.75999764,1591.7,1591.6,6.57238001]
[1673985937397,0.75999764,1591.7,1591.6,0.28940001]
[1673985937548,0.75999764,1591.7,1591.6,0.23]
[1673985938413,0.75999764,1591.7,1591.6,0.2262363]
[1673985942056,0.75999764,1591.7,1591.5,0.05940001]
[1673985942057,1.70029803,1591.7,1591.5,0.05940001]
[1673985942269,1.70029803,1591.7,1591.4,0.05940001]
[1673985942270,3.16030015,1591.6,1591.4,0.05940001]
[1673985942512,3.16030015,1591.6,1591.3,0.05911989]
[1673985942513,15.72652015,1591.6,1591.3,0.05911989]
[1673985942839,15.79252015,1591.6,1591.3,0.05911989]
[1673985944258,17.20294757,1591.6,1591.3,0.05911989]
[1673985944736,0.4714,1591.5,1591.3,0.05911989]
[1673985945357,15.18697902,1591.5,1591.3,0.05911989]
[1673985945577,16.19327941,1591.5,1591.3,0.05911989]
[1673985945767,3.62641941,1591.5,1591.3,0.05911989]
[1673985945999,2.62011902,1591.5,1591.3,6.34327989]
[1673985946148,0.4714,1591.5,1591.3,0.1185199]
[1673985946356,0.4714,1591.5,1591.3,0.05911989]
[1673985952879,6.7548,1591.5,1591.3,0.05911989]
[1673985953090,1.0,1591.4,1591.3,0.05911989]
[1673985953307,0.78208,1591.4,1591.3,0.05911989]
[1673985953754,15.23062039,1591.5,1591.3,0.05911989]
[1673985954342,1.0,1591.4,1591.3,0.05911989]
[1673985954559,15.68684039,1591.4,1591.3,0.05911989]
[1673985954813,16.22424039,1591.4,1591.3,0.05911989]
[1673985955873,15.04524039,1591.4,1591.3,0.05911989]
[1673985956180,16.43774717,1591.4,1591.3,0.05911989]
[1673985956400,22.72151717,1591.4,1591.3,0.05911989]
[1673985957915,23.90751717,1591.4,1591.3,0.05911989]
[1673985961756,25.31794459,1591.4,1591.3,0.05911989]
[1673985962584,27.49426827,1591.4,1591.3,0.05911989]
[1673985962901,29.3776188,1591.4,1591.3,0.05911989]
[1673985963125,27.96719138,1591.4,1591.3,0.05911989]
[1673985963427,29.37496793,1591.4,1591.3,0.05911989]
[1673985964652,28.18896793,1591.4,1591.3,0.05911989]
[1673985964857,26.3056174,1591.4,1591.3,0.05911989]
[1673985965132,28.18896793,1591.4,1591.3,0.05911989]
[1673985965864,26.3056174,1591.4,1591.3,0.05911989]
[1673985966026,30.56088902,1591.4,1591.3,0.05911989]
[1673985966892,28.67753849,1591.4,1591.3,0.05911989]
[1673985968019,30.56088902,1591.4,1591.3,0.05911989]
[1673985968688,30.56090615,1591.4,1591.3,0.05911989]
[1673985968859,28.67755562,1591.4,1591.3,0.05911989]
[1673985969701,25.56093155,1591.4,1591.3,0.05911989]
[1673985970596,30.56090615,1591.4,1591.3,0.05911989]
[1673985971545,29.37490615,1591.4,1591.3,0.05911989]
[1673985971909,27.49155562,1591.4,1591.3,0.05911989]
[1673985972161,28.43023973,1591.4,1591.3,0.05911989]
[1673985975123,27.02252496,1591.4,1591.3,0.05911989]
[1673985975338,28.43077269,1591.4,1591.3,0.05911989]
[1673985975708,27.24477269,1591.4,1591.3,0.05911989]
[1673985977018,26.30608858,1591.4,1591.3,0.05911989]
[1673985977368,27.24549795,1591.4,1591.3,0.05911989]
[1673985977637,26.30608858,1591.4,1591.3,0.05911989]
[1673985978215,28.18943911,1591.4,1591.3,0.05911989]
[1673985978541,30.54291627,1591.4,1591.3,0.05911989]
[1673985979155,28.65956574,1591.4,1591.3,0.0561353]
[1673985981475,29.84556574,1591.4,1591.3,0.0561353]
[1673985982317,27.49208858,1591.4,1591.3,0.0561353]
[1673985982522,29.84284548,1591.4,1591.3,0.0561353]
[1673985982743,27.49208858,1591.4,1591.3,0.0561353]
[1673985983156,30.31767662,1591.4,1591.3,0.0561353]
[1673985985416,27.02068858,1591.4,1591.3,0.0561353]
[1673985986746,29.37157008,1591.4,1591.3,0.0561353]
[1673985987076,27.02068858,1591.4,1591.3,0.0561353]
[1673985987760,29.37187921,1591.4,1591.3,0.0561353]
[1673985988044,28.18587921,1591.4,1591.3,0.0561353]
[1673985990727,11.99061627,1591.4,1591.3,0.0561353]
[1673985990974,10.10920836,1591.4,1591.3,0.0561353]
[1673985993161,3.82543836,1591.4,1591.3,0.0561353]
[1673985993417,3.75943836,1591.4,1591.3,0.0561353]
[1673985995092,5.64254016,1591.4,1591.3,0.0561353]
[1673985995317,5.64254016,1591.4,1591.3,7.65557135]
[1673985995318,4.76961386,1591.4,1591.3,7.65557135]
[1673985995508,4.76961386,1591.4,1591.3,7.71497136]
[1673985995509,2.82051206,1591.4,1591.3,7.71497136]
[1673985995669,2.82051206,1591.4,1591.3,22.69431136]
[1673985995670,2.3495585,1591.4,1591.3,22.69431136]
[1673985995880,2.3495585,1591.4,1591.3,21.69431136]
[1673985996138,1.40824773,1591.4,1591.3,21.69431136]
[1673985996307,1.40824773,1591.4,1591.3,25.99493543]
[1673985996734,5.16460459,1591.5,1591.4,2.40824773]
[1673985996946,0.066,1591.5,1591.4,43.524887]
[1673985997158,3.11349301,1591.7,1591.4,44.22102874]
[1673985997419,3.11349301,1591.7,1591.6,22.39494]
[1673985997625,3.11349301,1591.7,1591.6,22.45434001]
[1673985997791,0.75999764,1591.7,1591.6,22.68434001]
[1673985998002,0.75999764,1591.7,1591.6,25.89275042]
[1673986001099,0.75999764,1591.7,1591.6,25.89625938]
[1673986003665,0.75999764,1591.7,1591.6,29.01288345]
[1673986003876,0.066,1592.0,1591.7,1.0]
[1673986004093,0.94123104,1592.1,1592.0,18.8442]
[1673986004346,2.35349537,1592.1,1592.0,22.45260001]
[1673986005155,1.41226433,1592.1,1592.0,22.45260001]
[1673986005390,1.41226433,1592.1,1592.0,1.24540001]
[1673986005598,12.77643009,1592.1,1591.9,1.24540001]
[1673986005915,12.77643009,1592.1,1591.8,1.18]
[1673986005916,1.40666053,1592.0,1591.8,1.18]
[1673986006127,0.93770411,1591.9,1591.8,1.18]
[1673986008544,0.93970411,1591.9,1591.8,1.18]
[1673986008753,0.93770411,1591.9,1591.8,1.18]
[1673986010115,2.34436464,1591.9,1591.8,1.18]
[1673986010986,3.11835073,1591.9,1591.8,1.18]
[1673986011727,1.7116902,1591.9,1591.8,1.18]
[1673986014320,0.77398609,1591.9,1591.8,15.753072]
[1673986014532,0.77398609,1591.9,1591.8,15.81247201]
[1673986014994,0.77398609,1591.9,1591.8,16.98847201]
[1673986016880,0.77398609,1591.9,1591.8,10.70628201]
[1673986017196,0.77398609,1591.9,1591.8,8.69759001]
[1673986019291,0.77398609,1591.9,1591.8,2.41540001]
[1673986019500,0.77398609,1591.9,1591.8,1.18]
[1673986019501,1.7116902,1591.9,1591.8,1.18]
[1673986019709,14.2752902,1591.9,1591.7,1.186]
[1673986019881,8.0594902,1591.9,1591.7,1.186]
[1673986020773,1.7776902,1591.9,1591.7,1.186]
[1673986021050,1.7116902,1591.9,1591.7,1.186]
[1673986022866,1.7116902,1591.9,1591.7,7.46843]
[1673986023044,1.7116902,1591.9,1591.7,10.84371591]
[1673986024686,1.7116902,1591.9,1591.8,1.186]
[1673986024997,1.7116902,1591.9,1591.8,7.4656472]
[1673986025306,1.7116902,1591.9,1591.8,1.24285721]
[1673986025461,1.7116902,1591.9,1591.8,1.1834572]
[1673986026143,1.7116902,1591.9,1591.7,0.05940001]
[1673986026362,1.7116902,1591.9,1591.7,1.186]
[1673986026937,3.11835073,1591.9,1591.7,1.186]
[1673986027571,0.93770411,1591.8,1591.7,1.186]
[1673986028518,0.93770411,1591.8,1591.6,13.12100001]
[1673986028753,0.93770411,1591.7,1591.6,11.93900001]
[1673986029392,1.40666053,1591.7,1591.6,11.93900001]
[1673986030662,9.57235233,1591.7,1591.6,11.93900001]
[1673986030869,9.63835233,1591.7,1591.6,11.93900001]
[1673986031109,12.14089963,1591.7,1591.6,11.93900001]
[1673986031248,10.7342391,1591.7,1591.6,11.93900001]
[1673986032577,10.7342391,1591.7,1591.6,0.05940001]
[1673986032884,13.08542973,1591.7,1591.4,18.41391001]
[1673986033198,0.94006492,1591.5,1591.4,18.41391001]
[1673986033356,0.94006492,1591.5,1591.4,14.03668001]
[1673986033357,0.002,1591.5,1591.4,14.03668001]
[1673986033576,0.94006492,1591.6,1591.4,20.32245001]
[1673986033771,0.94006492,1591.6,1591.5,1.412]
[1673986033982,0.94006492,1591.6,1591.5,13.97876]
[1673986034193,0.94006492,1591.6,1591.5,16.07032701]
[1673986034406,0.94006492,1591.6,1591.5,22.35370701]
[1673986036640,0.94006492,1591.7,1591.5,22.35370701]
[1673986036827,2.35016231,1591.7,1591.5,22.35370701]
[1673986037037,2.35016231,1591.7,1591.6,2.2353707]
[1673986037038,0.94006492,1591.7,1591.6,2.2353707]
[1673986037293,2.35016231,1591.8,1591.6,22.5033107]
[1673986037506,1.41009739,1591.8,1591.7,1.419]
[1673986037824,1.41009739,1591.8,1591.7,13.98418]
[1673986038141,1.41009739,1591.8,1591.7,14.04358001]
[1673986039578,3.29319919,1591.8,1591.7,14.04358001]
[1673986041093,3.29319919,1591.8,1591.7,7.76099001]
[1673986041539,3.29447688,1591.8,1591.7,6.34199001]
[1673986041831,3.29447688,1591.8,1591.7,0.05940001]
[1673986041832,2.99975599,1591.8,1591.7,0.05940001]
[1673986041995,9.75324599,1591.8,1591.5,0.05940001]
[1673986042223,9.75324599,1591.8,1591.4,0.05940001]
[1673986042224,3.29349583,1591.6,1591.4,0.05940001]
[1673986042424,0.32934958,1591.5,1591.3,12.18653531]
[1673986042642,0.9410855,1591.4,1591.3,18.47065531]
[1673986042819,0.9410855,1591.4,1591.3,6.39965531]
[1673986043171,2.8241052,1591.5,1591.3,12.68382531]
[1673986043557,0.9410855,1591.4,1591.3,12.68382531]
[1673986044450,0.9410855,1591.4,1591.3,6.39965531]
[1673986045972,2.3527052,1591.4,1591.3,6.39965531]
[1673986046445,0.9410855,1591.4,1591.3,0.11553531]
[1673986046653,1.4116197,1591.4,1591.3,0.0561353]
[1673986047030,1.4116197,1591.4,1591.3,0.05367015]
[1673986047234,2.35203454,1591.4,1591.3,0.05367015]
[1673986047355,0.94041484,1591.4,1591.3,1.32740269]
[1673986047567,3.35961732,1591.5,1591.3,20.32518015]
[1673986047568,2.41803454,1591.5,1591.3,20.32518015]
[1673986047830,0.94041484,1591.5,1591.4,1.419]
[1673986048034,0.94041484,1591.5,1591.4,13.98654]
[1673986048251,0.94241484,1591.5,1591.4,20.32771001]
[1673986048405,0.94041484,1591.5,1591.4,20.32971001]
[1673986048888,2.35203454,1591.6,1591.4,20.32971001]
[1673986049201,2.35203454,1591.6,1591.5,1.419]
[1673986049348,1.4116197,1591.6,1591.5,7.70238]
[1673986049559,2.35183056,1591.6,1591.5,7.76178001]
[1673986050080,2.35183056,1591.6,1591.5,9.79471201]
[1673986050296,2.35183056,1591.6,1591.5,20.32854001]
[1673986050297,0.94021086,1591.6,1591.5,20.32854001]
[1673986050554,2.35183056,1591.7,1591.5,20.55854001]
[1673986050791,2.35183056,1591.7,1591.6,1.407]
[1673986050960,2.35183056,1591.7,1591.6,20.25594]
[1673986051174,2.35183056,1591.7,1591.6,22.36987401]
[1673986051551,0.94021086,1591.7,1591.6,22.36987401]
[1673986051773,0.94021086,1591.7,1591.6,7.74938001]
[1673986051774,1.4116197,1591.7,1591.6,7.74938001]
[1673986052288,1.4116197,1591.7,1591.6,6.34238001]
[1673986053559,2.35171979,1591.7,1591.6,6.34238001]
[1673986054345,1.4116197,1591.7,1591.6,6.34238001]
[1673986056075,1.4116197,1591.7,1591.6,0.05940001]
[1673986056435,4.49291811,1591.7,1591.5,7.74974001]
[1673986056651,0.94033162,1591.6,1591.5,7.74974001]
[1673986057776,0.94033162,1591.6,1591.5,1.46640001]
[1673986057987,0.93709785,1591.6,1591.5,1.407]
[1673986058359,2.34871755,1591.6,1591.5,1.407]
[1673986058652,0.88709785,1591.6,1591.5,1.407]
[1673986059960,2.29871755,1591.6,1591.4,25.53005001]
[1673986060418,0.88709785,1591.6,1591.4,25.53005001]
[1673986060743,0.88709785,1591.6,1591.5,1.412]
[1673986060960,0.88709785,1591.6,1591.5,7.69538]
[1673986061148,0.88709785,1591.6,1591.5,7.75478001]
[1673986064693,2.29871755,1591.6,1591.5,6.34278001]
[1673986066168,0.88709785,1591.6,1591.5,6.34278001]
[1673986067530,10.98756825,1591.6,1591.5,0.05940001]
[1673986067738,19.07018407,1591.6,1591.4,0.05940001]
[1673986067994,3.29322272,1591.5,1591.3,0.11307016]
[1673986068209,3.29311271,1591.5,1591.3,0.05367015]
[1673986068381,0.94074013,1591.4,1591.3,0.05367015]
[1673986068792,1.41111509,1591.4,1591.3,0.05367015]
[1673986069002,3.00372336,1591.4,1591.3,0.05367015]
[1673986069789,2.35180417,1591.4,1591.3,0.05367015]
[1673986071347,1.41111509,1591.4,1591.3,0.05367015]
[1673986073301,2.35151374,1591.4,1591.3,0.05367015]
[1673986073508,1.41111509,1591.4,1591.3,0.05367015]
[1673986074357,2.35139127,1591.4,1591.3,0.05367015]
[1673986074582,0.94024917,1591.4,1591.3,0.05367015]
[1673986074792,2.35136426,1591.4,1591.3,0.05367015]
[1673986077764,2.35146922,1591.4,1591.3,0.05367015]
[1673986079349,1.41111509,1591.4,1591.3,0.05367015]
[1673986079873,3.63210636,1591.4,1591.3,0.05367015]
[1673986080089,4.10298889,1591.4,1591.3,0.05367015]
[1673986080714,5.51358739,1591.4,1591.3,0.05367015]
[1673986080886,19.55911952,1591.4,1591.3,0.05367015]
[1673986081337,27.07751597,1591.4,1591.3,0.05367015]
[1673986081543,27.07751597,1591.4,1591.3,0.04993826]
[1673986082262,28.95867169,1591.4,1591.3,0.04993826]
[1673986082496,27.07751597,1591.4,1591.3,0.04993826]
[1673986082895,28.95865207,1591.4,1591.3,0.04993826]
[1673986083511,27.07751597,1591.4,1591.3,0.04993826]
[1673986083753,28.95853799,1591.4,1591.3,0.04993826]
[1673986083943,26.60734736,1591.4,1591.3,0.04993826]
[1673986086680,26.60734736,1591.4,1591.3,1.13393826]
[1673986086681,7.75603736,1591.4,1591.3,1.13393826]
[1673986086908,7.75603736,1591.4,1591.3,7.75310826]
[1673986086909,2.41621868,1591.4,1591.3,7.75310826]
[1673986087126,0.94004443,1591.4,1591.3,20.38084827]
[1673986087311,1.47617425,1591.5,1591.3,20.38084827]
[1673986087312,0.94004443,1591.5,1591.3,20.38084827]
[1673986087663,0.94004443,1591.5,1591.4,20.27031]
[1673986087882,0.94004443,1591.5,1591.4,22.36767484]
[1673986094462,0.94004443,1591.5,1591.4,16.08390484]
[1673986094652,0.94004443,1591.5,1591.4,14.04594001]
[1673986095828,1.41017425,1591.5,1591.4,1.47840001]
[1673986096183,1.41017425,1591.5,1591.3,7.80630827]
[1673986096338,0.94037303,1591.4,1591.3,7.80630827]
[1673986096805,0.94037303,1591.4,1591.3,14.09047827]
[1673986097595,0.94037303,1591.5,1591.3,14.09047827]
[1673986099554,0.94037303,1591.5,1591.3,20.37464827]
[1673986099695,0.94037303,1591.5,1591.3,23.04608862]
[1673986100384,0.94037303,1591.5,1591.3,20.37464827]
[1673986100698,0.94037303,1591.4,1591.3,14.09047827]
[1673986102114,2.35054728,1591.4,1591.3,14.09047827]
[1673986102418,0.94037303,1591.4,1591.3,14.09047827]
[1673986103074,2.35054728,1591.4,1591.3,14.09047827]
[1673986103289,2.35054728,1591.4,1591.3,14.08668065]
[1673986103476,0.94037303,1591.4,1591.3,14.08668065]
[1673986104160,2.35054728,1591.4,1591.3,14.08668065]
[1673986104379,0.94037303,1591.4,1591.3,14.08668065]
[1673986104545,0.94037303,1591.4,1591.3,16.12932424]
[1673986104773,2.35054728,1591.5,1591.3,22.41349424]
[1673986105111,0.94037303,1591.5,1591.4,13.98654]
[1673986105317,0.94037303,1591.5,1591.4,14.04594001]
[1673986109704,2.35054728,1591.6,1591.4,20.55971001]
[1673986109924,1.41017425,1591.6,1591.5,1.412]
[1673986110641,1.41017425,1591.6,1591.5,7.69538]
[1673986110855,1.41017425,1591.6,1591.5,7.75478001]
[1673986111419,1.41017425,1591.6,1591.5,6.34278001]
[1673986112011,1.41017425,1591.6,1591.5,12.62616001]
[1673986112226,2.35082002,1591.6,1591.5,12.62616001]
[1673986112442,1.41017425,1591.6,1591.5,12.62616001]
[1673986113201,2.35082039,1591.6,1591.5,12.62616001]
[1673986113534,1.41017425,1591.6,1591.5,12.62616001]
[1673986113689,2.35081845,1591.6,1591.5,12.62616001]
[1673986113893,1.41017425,1591.6,1591.5,12.62616001]
[1673986114103,2.35079424,1591.6,1591.5,18.90954001]
[1673986115883,0.94061999,1591.6,1591.5,18.90954001]
[1673986116249,0.94061999,1591.6,1591.5,20.94239401]
[1673986116462,0.93757984,1591.6,1591.5,20.94239401]
[1673986117298,1.41017425,1591.7,1591.5,22.36139401]
[1673986117547,1.41017425,1591.7,1591.6,1.407]
[1673986117753,1.41017425,1591.7,1591.6,20.25594]
[1673986117968,1.41017425,1591.7,1591.6,22.55015941]
[1673986119096,15.28759628,1591.8,1591.6,22.55015941]
[1673986119837,7.09249628,1591.8,1591.6,22.54815941]
[1673986120043,7.09249628,1591.8,1591.6,22.55015941]
[1673986120366,1.41017425,1591.7,1591.6,14.03236001]
[1673986120669,1.88102202,1591.7,1591.6,14.03236001]
[1673986120873,3.29174748,1591.7,1591.6,1.46640001]
[1673986121090,2.35119063,1591.7,1591.5,0.05940001]
[1673986121302,3.29188627,1591.6,1591.4,20.39516001]
[1673986122254,3.29188627,1591.6,1591.4,14.11160001]
[1673986122475,1.4108084,1591.5,1591.4,14.11160001]
[1673986122705,1.4108084,1591.5,1591.4,20.39537001]
[1673986123034,1.4108084,1591.6,1591.4,26.67914001]
[1673986123189,1.4108084,1591.6,1591.4,32.96291001]
[1673986123763,3.29188627,1591.6,1591.4,36.89219307]
[1673986123986,1.4108084,1591.6,1591.4,36.89219307]
[1673986124919,1.4108084,1591.6,1591.4,20.39537001]
[1673986125133,1.4108084,1591.5,1591.4,20.39537001]
[1673986125741,3.29188627,1591.6,1591.4,20.39537001]
[1673986125914,1.4108084,1591.5,1591.4,20.39537001]
[1673986126138,1.4108084,1591.5,1591.4,14.11160001]
[1673986126936,2.35223667,1591.5,1591.4,14.11160001]
[1673986127718,2.35223667,1591.5,1591.4,20.39537001]
[1673986127929,2.35223667,1591.5,1591.4,14.11160001]
[1673986127930,3.29188627,1591.5,1591.4,14.11160001]
[1673986128878,3.29188627,1591.5,1591.4,1.47840001]
[1673986129095,2.45198556,1591.5,1591.3,0.10554065]
[1673986129307,1.41228923,1591.4,1591.3,0.04614064]
[1673986129531,18.5067547,1591.4,1591.3,0.04614064]
[1673986129871,27.68178774,1591.4,1591.3,0.04614064]
[1673986130493,25.33059711,1591.4,1591.3,0.04614064]
[1673986131606,27.68245698,1591.4,1591.3,0.04614064]
[1673986131955,21.39868698,1591.4,1591.3,0.04614064]
[1673986134817,0.94055958,1591.6,1591.5,1.419]
[1673986135129,0.94055958,1591.6,1591.5,22.50576151]
[1673986135280,0.94055958,1591.6,1591.5,22.56516152]
[1673986136049,2.351405,1591.7,1591.5,27.10078559]
[1673986136226,0.94055958,1591.7,1591.6,1.419]
[1673986136439,0.94055958,1591.7,1591.6,16.69503856]
[1673986136655,0.94055958,1591.7,1591.6,16.75443857]
[1673986138016,5.68140501,1591.8,1591.6,16.75443857]
[1673986138269,5.68140501,1591.8,1591.7,13.98418]
[1673986138484,5.68140501,1591.8,1591.7,14.04358001]
[1673986138716,5.68140501,1591.8,1591.7,16.34724387]
[1673986139012,4.74084543,1591.8,1591.7,16.34724387]
[1673986139227,4.67484543,1591.8,1591.7,16.34724387]
[1673986140532,4.67484543,1591.8,1591.7,22.62983387]
[1673986142956,5.61482334,1591.8,1591.7,22.62983387]
[1673986143171,6.37880669,1591.8,1591.7,22.62983387]
[1673986143406,5.43882878,1591.8,1591.7,22.62983387]
[1673986145749,6.37867058,1591.8,1591.7,22.62983387]
[1673986146122,4.96782516,1591.8,1591.7,22.62983387]
[1673986146499,4.90382516,1591.8,1591.7,22.62783387]
[1673986146807,3.96198336,1591.8,1591.7,22.62983387]
[1673986147196,4.90182516,1591.8,1591.7,22.62983387]
[1673986147851,3.96198336,1591.8,1591.7,22.62983387]
[1673986151382,3.96198336,1591.8,1591.7,24.04083387]
[1673986151909,3.02674344,1591.8,1591.7,24.04083387]
[1673986156552,3.02674344,1591.8,1591.7,22.62183387]
[1673986156789,3.02674344,1591.8,1591.7,0.05940001]
[1673986157005,3.96658524,1591.8,1591.6,14.04394001]
[1673986157304,3.96658524,1591.8,1591.7,6.28259]
[1673986157518,3.96658524,1591.8,1591.7,6.34199001]
[1673986158427,3.57108651,1591.8,1591.7,0.05940001]
[1673986158643,4.51092831,1591.8,1591.6,14.04394001]
[1673986158886,3.96658524,1591.8,1591.6,14.04394001]
[1673986160196,3.96658524,1591.8,1591.6,20.32692001]
[1673986162002,3.02674344,1591.8,1591.6,20.32692001]
[1673986162263,3.02674344,1591.8,1591.7,1.407]
[1673986162419,3.02674344,1591.8,1591.7,21.029683]
[1673986162738,3.02674344,1591.8,1591.7,21.08908301]
[1673986164895,3.02674344,1591.8,1591.7,22.49708301]
[1673986167564,3.02674344,1591.8,1591.7,28.61370708]
[1673986167782,1.36424294,1591.8,1591.7,29.58954881]
[1673986168149,1.36424294,1591.8,1591.7,35.87213881]
[1673986168313,0.69798335,1591.8,1591.7,35.87213881]
[1673986169103,0.14676982,1592.2,1591.8,2.419]
[1673986169274,0.14676982,1592.2,1592.1,2.825]
[1673986169480,0.14676982,1592.2,1592.1,27.94904]
[1673986169676,0.14676982,1592.2,1592.1,28.00844001]
[1673986170211,0.14676982,1592.2,1592.1,26.58944001]
[1673986171796,0.14676982,1592.2,1592.1,29.70606408]
[1673986172006,0.14676982,1592.2,1592.1,32.90667049]
[1673986172233,1.08661162,1592.2,1592.1,32.90667049]
[1673986172663,0.14676982,1592.2,1592.1,32.90667049]
[1673986173792,0.14676982,1592.2,1592.1,37.08467049]
[1673986173989,1.08661162,1592.2,1592.1,37.08467049]
[1673986174201,0.14676982,1592.2,1592.1,37.08467049]
[1673986177325,2.14661162,1592.2,1592.1,24.71643001]